bitfinex-derivatives/quotes_ETHF0:USTF0_20260119
["timestamp","ask_amount","ask_price","bid_price","bid_amount"]
[1768835741362,0.13943062,3221.9,3220.5,0.15533]
[1768835741562,0.87987559,3221.8,3220.5,0.15533]
[1768835741762,0.00466099,3221.5,3220.5,0.15533]
[1768835744368,0.00466099,3221.5,3220.2,0.14067313]
[1768835745264,0.00466099,3221.5,3220.2,0.29917994]
[1768835745570,0.00466099,3221.5,3220.3,0.29916994]
[1768835745769,0.00466099,3221.5,3220.5,0.14382994]
[1768835750374,0.00466099,3221.5,3220.5,0.29915994]
[1768835750968,0.00466099,3221.5,3220.7,0.14382994]
[1768835751174,0.00466099,3221.5,3220.8,0.14382994]
[1768835754272,0.00237534,3221.9,3220.8,0.14382994]
[1768835754481,0.00237534,3221.9,3220.8,0.14849093]
[1768835755372,0.88086873,3221.8,3220.8,0.14849093]
[1768835755573,0.00237534,3221.9,3220.8,0.14849093]
[1768835755772,0.88089169,3221.8,3220.8,0.14849093]
[1768835755973,0.00237534,3221.9,3220.8,0.14849093]
[1768835756187,0.88089169,3221.8,3220.8,0.14849093]
[1768835756486,0.00237534,3221.9,3221.0,0.14434187]
[1768835757073,1.2859469,3221.7,3220.8,0.00466099]
[1768835757772,0.00237534,3221.9,3220.8,0.00466099]
[1768835757973,0.00237534,3221.9,3220.8,0.14900286]
[1768835758584,0.00237534,3221.9,3220.9,0.15532]
[1768835762285,0.88113001,3221.8,3220.9,0.15532]
[1768835762482,0.00237534,3221.9,3220.9,0.15532]
[1768835762677,0.88112961,3221.8,3220.9,0.15532]
[1768835762877,0.00237534,3221.9,3220.9,0.15532]
[1768835763077,0.88112961,3221.8,3220.9,0.15532]
[1768835763285,0.00237534,3221.9,3220.8,0.14900286]
[1768835763487,1.2859469,3221.4,3220.4,0.14434187]
[1768835764485,1.2859469,3221.4,3220.3,0.15534]
[1768835768286,1.2859469,3221.7,3220.4,0.15534]
[1768835768487,0.88171848,3221.6,3220.4,0.29968187]
[1768835768686,1.2859469,3221.7,3220.4,0.29968187]
[1768835768880,0.88171845,3221.6,3220.4,0.29968187]
[1768835769078,1.2859469,3221.7,3220.4,0.29968187]
[1768835769380,0.88172585,3221.6,3220.4,0.29968187]
[1768835769686,1.2859469,3221.7,3220.4,0.29968187]
[1768835769887,0.88180688,3221.6,3220.4,0.29968187]
[1768835770182,1.2859469,3221.7,3220.4,0.29968187]
[1768835770388,0.88181358,3221.6,3220.4,0.15534]
[1768835770579,1.2859469,3221.7,3220.4,0.15534]
[1768835770779,0.88179949,3221.6,3220.4,0.15534]
[1768835770980,1.28657017,3221.1,3220.4,0.15534]
[1768835772682,1.28657017,3220.9,3220.0,0.14434187]
[1768835773683,1.28657017,3220.7,3220.0,0.14434187]
[1768835774285,0.14334479,3221.6,3219.9,0.15536]
[1768835774286,0.14334479,3221.5,3219.9,0.15536]
[1768835774484,1.28657017,3220.7,3219.9,0.15536]
[1768835775783,1.28657017,3220.9,3219.9,0.29970187]
[1768835776983,1.28657017,3220.8,3219.9,0.15536]
[1768835777687,1.28657017,3220.4,3219.9,0.15536]
[1768835777989,1.28657017,3220.8,3219.9,0.15536]
[1768835778292,1.28657017,3220.9,3219.9,0.29970187]
[1768835778990,1.28657017,3220.7,3219.9,0.15536]
[1768835779782,1.28657017,3220.5,3219.9,0.15536]
[1768835779983,1.28657017,3220.5,3218.6,0.24344174]
[1768835779984,2.57314034,3219.5,3217.3,0.14434187]
[1768835780188,0.88065246,3219.4,3218.0,0.14434187]
[1768835780382,1.28657017,3219.8,3218.3,0.14434187]
[1768835780594,1.28657017,3219.5,3218.4,0.14434187]
[1768835780794,1.28657017,3219.1,3218.4,0.14434187]
[1768835780995,0.00332957,3219.5,3218.4,0.14709706]
[1768835781202,0.00332957,3219.5,3218.4,0.00275519]
[1768835781689,0.92996717,3219.4,3218.0,0.14434187]
[1768835781997,0.00332957,3219.5,3218.0,0.14434187]
[1768835781998,2.785083,3219.3,3218.0,0.14434187]
[1768835782184,1.85511583,3219.3,3217.6,0.29981187]
[1768835782587,1.85511583,3219.3,3217.6,0.14434187]
[1768835782890,0.92888508,3219.2,3217.6,0.14789103]
[1768835783087,0.92888508,3219.1,3217.6,0.14789103]
[1768835783289,1.85511583,3219.3,3217.6,0.14789103]
[1768835783489,0.92776015,3219.2,3217.6,0.14789103]
[1768835783689,0.92776015,3219.1,3217.6,0.14789103]
[1768835783890,2.01050583,3219.3,3217.6,0.14789103]
[1768835784191,1.85511583,3218.8,3217.6,0.14789103]
[1768835784508,1.85511583,3218.8,3216.4,0.819]
[1768835784509,1.85511583,3217.8,3216.7,0.13516376]
[1768835784795,1.85511583,3217.8,3216.4,0.15553]
[1768835785590,1.85511583,3217.8,3216.4,0.15824337]
[1768835786098,0.15544,3218.4,3216.6,8.79526922]
[1768835786284,1.98941113,3218.6,3216.4,0.00271337]
[1768835786484,3.107,3218.5,3216.6,0.15552]
[1768835786687,3.107,3218.5,3216.7,0.13516376]
[1768835790093,3.2424866,3218.5,3216.7,0.13516376]
[1768835794194,3.2424866,3218.5,3216.7,0.29068376]
[1768835794595,1.79,3218.4,3216.7,0.29068376]
[1768835795303,0.00466099,3217.9,3216.7,0.29068376]
[1768835795699,0.00466099,3217.9,3216.8,8.79526922]
[1768835796506,0.00466099,3217.9,3216.9,8.79526922]
[1768835796692,0.00466099,3217.9,3216.8,8.79526922]
[1768835797093,0.00466099,3217.9,3216.9,8.79526922]
[1768835797303,0.00466099,3217.9,3216.8,8.79526922]
[1768835797697,0.00466099,3217.9,3216.9,8.79526922]
[1768835797997,0.00466099,3217.9,3216.8,8.79526922]
[1768835798396,0.00466099,3217.9,3216.9,8.79526922]
[1768835798694,0.00466099,3217.9,3217.2,8.93043298]
[1768835798902,0.00466099,3217.9,3217.2,0.13516376]
[1768835799099,0.00466099,3217.9,3217.5,8.79526922]
[1768835799299,0.15542,3218.7,3217.5,8.79526922]
[1768835799500,0.15542,3218.7,3217.2,0.13516376]
[1768835800204,1.94642,3218.7,3217.2,0.13516376]
[1768835800603,1.94642,3218.7,3217.6,0.00466099]
[1768835801101,1.94642,3218.7,3217.2,0.13516376]
[1768835801503,0.92353013,3218.6,3217.2,0.13516376]
[1768835801805,1.791,3218.5,3217.2,0.13516376]
[1768835802102,0.15542,3218.7,3217.2,0.29065376]
[1768835802304,2.71572528,3218.6,3217.2,0.29065376]
[1768835802502,6.357,3219.0,3217.4,0.29841909]
[1768835802702,2.71568557,3218.9,3217.4,0.29841909]
[1768835802904,1.28870226,3218.4,3217.4,0.29841909]
[1768835803399,1.28870226,3218.4,3217.6,8.79526922]
[1768835803801,1.28870226,3218.4,3217.7,8.79526922]
[1768835804001,1.28870226,3218.4,3217.6,8.79526922]
[1768835804398,1.28870226,3218.4,3217.7,8.79526922]
[1768835804598,1.28870226,3218.4,3217.6,8.79526922]
[1768835804806,1.28870226,3218.5,3217.6,8.79526922]
[1768835805008,1.28870226,3218.5,3217.5,0.29841909]
[1768835805203,1.28870226,3218.5,3217.6,8.79526922]
[1768835805398,1.28870226,3218.5,3217.5,0.29841909]
[1768835805902,1.28870226,3218.9,3217.8,0.14293909]
[1768835806107,1.28870226,3218.9,3217.9,0.14293909]
[1768835806310,1.28870226,3218.9,3218.0,8.79526922]
[1768835806497,1.11996165,3219.5,3218.2,8.79526922]
[1768835806697,1.28870226,3219.0,3217.9,0.29839909]
[1768835806901,1.28870226,3219.0,3218.0,8.79526922]
[1768835807103,1.28870226,3218.8,3218.2,8.79526922]
[1768835807304,1.28870226,3218.8,3218.0,8.79526922]
[1768835807505,1.28870226,3218.8,3218.2,8.79526922]
[1768835807906,1.28870226,3218.8,3218.4,8.79526922]
[1768835808212,1.28870226,3219.0,3218.3,8.79526922]
[1768835808408,0.93048037,3218.9,3218.0,8.93820831]
[1768835808607,0.93048037,3218.8,3218.3,8.79526922]
[1768835808810,1.28870226,3219.0,3218.3,8.79526922]
[1768835809009,0.93048037,3218.9,3218.4,8.79526922]
[1768835809210,1.28870226,3219.0,3218.4,8.79526922]
[1768835809509,1.28870226,3219.0,3218.5,8.79526922]
[1768835809809,1.07719958,3219.0,3218.3,8.79526922]
[1768835810202,1.11663208,3219.4,3218.3,0.14293909]
[1768835810397,1.28870226,3219.3,3218.4,8.79526922]
[1768835810814,1.28870226,3219.3,3218.5,8.79526922]
[1768835811010,1.11996165,3219.5,3218.5,8.79526922]
[1768835811204,1.11996165,3219.5,3218.3,0.14293909]
[1768835811513,1.11996165,3219.5,3218.4,8.79526922]
[1768835812011,1.11996165,3219.5,3218.5,8.79526922]
[1768835812305,0.00332957,3219.5,3218.4,8.79526922]
[1768835812505,0.00332957,3219.5,3218.5,0.14293909]
[1768835812708,0.00332957,3219.5,3218.7,8.93820831]
[1768835812910,0.00332957,3219.5,3218.7,0.14573455]
[1768835813111,0.00332957,3219.5,3218.9,8.79526922]
[1768835813610,0.00332957,3219.5,3218.7,0.14573455]
[1768835813611,0.00332957,3219.5,3219.1,8.79526922]
[1768835814113,0.00332957,3219.5,3219.3,8.79526922]
[1768835814314,0.00332957,3219.5,3219.1,8.79526922]
[1768835814818,0.00332957,3219.5,3219.3,8.79526922]
[1768835815012,0.00332957,3219.5,3219.1,8.79526922]
[1768835815517,0.00332957,3219.5,3219.2,8.10101531]
[1768835815806,0.00332957,3219.5,3219.1,8.10101531]
[1768835816313,0.00332957,3219.5,3219.3,8.10101531]
[1768835816513,0.00332957,3219.5,3219.1,8.10101531]
[1768835817011,0.00332957,3219.5,3219.3,8.10101531]
[1768835817208,0.00332957,3219.5,3219.1,8.10101531]
[1768835817408,0.00332957,3219.5,3219.3,8.10101531]
[1768835817710,0.00332957,3219.5,3219.1,8.10101531]
[1768835818210,0.00332957,3219.5,3219.3,8.10101531]
[1768835818413,0.00332957,3219.5,3219.1,8.10101531]
[1768835819019,0.00332957,3219.5,3219.3,8.10101531]
[1768835819213,0.00332957,3219.5,3219.1,8.10101531]
[1768835819716,0.00332957,3219.5,3218.7,0.14573455]
[1768835819717,0.00332957,3219.5,3219.3,8.10101531]
[1768835819917,0.00332957,3219.5,3219.1,8.10101531]
[1768835820319,0.00332957,3219.5,3219.3,8.10101531]
[1768835820520,0.00332957,3219.5,3219.1,8.10101531]
[1768835821007,0.00332957,3219.5,3219.3,8.10101531]
[1768835821323,0.00332957,3219.5,3218.7,0.14573455]
[1768835821706,0.00332957,3219.5,3218.7,0.00279546]
[1768835823321,0.00466099,3219.4,3218.7,0.00279546]
[1768835827420,0.00466099,3219.4,3218.7,0.14193573]
[1768835832118,0.00466099,3219.4,3218.7,0.00279546]
[1768835832325,0.9250346,3219.3,3218.0,0.15546]
[1768835832520,0.9250346,3219.2,3218.0,0.29460027]
[1768835832725,0.00466099,3219.4,3218.0,0.29460027]
[1768835832920,0.92505155,3219.3,3218.0,0.29460027]
[1768835833124,0.92505155,3219.2,3218.0,0.29460027]
[1768835833316,0.00466099,3219.4,3218.0,0.29696357]
[1768835833517,0.9254213,3219.3,3218.0,0.29696357]
[1768835833724,1.28823684,3219.1,3218.0,0.14150357]
[1768835833926,0.9254213,3219.0,3218.0,0.14150357]
[1768835836626,0.9254213,3218.9,3218.0,0.14150357]
[1768835836828,1.11663208,3219.3,3218.0,0.14150357]
[1768835837124,0.92649868,3219.2,3218.0,0.14150357]
[1768835837327,0.92649868,3219.1,3218.0,0.14150357]
[1768835837527,0.92649868,3219.0,3218.0,0.14150357]
[1768835837728,0.92649868,3218.9,3218.0,0.14150357]
[1768835838032,1.11663208,3219.3,3218.0,0.14150357]
[1768835838229,0.92673781,3219.2,3218.0,0.14150357]
[1768835838427,0.92673781,3219.1,3218.0,0.14150357]
[1768835838634,0.92673781,3219.0,3218.0,0.14150357]
[1768835838831,0.92673781,3218.9,3218.0,0.14150357]
[1768835839031,1.11663208,3219.3,3218.0,0.14150357]
[1768835839232,2.04348533,3219.2,3218.0,0.14150357]
[1768835839429,0.92685325,3219.1,3218.0,0.14150357]
[1768835839632,0.92685325,3219.0,3218.0,0.14150357]
[1768835839826,0.92685325,3218.9,3218.0,0.14150357]
[1768835840026,0.92685325,3218.8,3218.0,0.14150357]
[1768835840227,1.11663208,3219.2,3218.0,0.14150357]
[1768835840625,2.04349825,3219.2,3218.0,0.14150357]
[1768835841844,0.92686617,3219.1,3218.0,0.14150357]
[1768835842049,0.92686617,3219.0,3218.0,0.14150357]
[1768835842343,0.92686617,3218.9,3218.0,0.14150357]
[1768835842535,2.90763208,3219.3,3218.0,0.29696357]
[1768835842737,0.92669463,3219.2,3218.0,0.29696357]
[1768835843038,0.92669463,3219.1,3218.0,0.29696357]
[1768835843239,0.92669463,3219.0,3218.1,0.13908726]
[1768835843436,0.92669463,3218.9,3218.1,0.13908726]
[1768835843742,2.90763208,3219.3,3218.0,0.1578233]
[1768835843743,1.28823684,3219.1,3218.0,0.1578233]
[1768835843942,0.92660788,3219.0,3218.0,0.1578233]
[1768835844246,0.92660788,3218.9,3218.1,0.13908726]
[1768835844442,1.28823684,3219.1,3218.1,0.13908726]
[1768835844643,0.92653571,3219.0,3218.1,0.13908726]
[1768835844945,0.92653571,3218.9,3218.1,0.13908726]
[1768835845144,1.28823684,3219.1,3218.1,0.13908726]
[1768835845344,0.92648101,3219.0,3218.1,0.13908726]
[1768835845532,0.92648101,3218.9,3218.1,0.13908726]
[1768835845738,1.28823684,3219.1,3218.1,0.13908726]
[1768835845940,0.92648084,3219.0,3218.1,0.13908726]
[1768835846246,0.92648084,3218.9,3218.1,0.13908726]
[1768835846437,1.28823684,3219.1,3218.1,0.13908726]
[1768835846636,0.92643446,3219.0,3218.1,0.13908726]
[1768835846845,0.92643446,3218.9,3218.1,0.13908726]
[1768835847046,1.28823684,3219.1,3218.1,0.13908726]
[1768835847249,0.92640339,3219.0,3218.1,0.13908726]
[1768835847442,0.92640339,3218.9,3218.1,0.13908726]
[1768835847643,1.28823684,3219.1,3218.1,0.13908726]
[1768835847846,0.92640339,3219.0,3218.0,0.1578233]
[1768835848043,0.92640339,3218.9,3218.0,0.1578233]
[1768835848248,2.90863208,3219.3,3218.1,0.13908726]
[1768835848440,0.92638126,3219.2,3218.1,0.13908726]
[1768835848639,0.92638126,3219.1,3218.1,0.13908726]
[1768835848939,0.92638126,3219.0,3218.1,0.13908726]
[1768835849151,0.92638126,3218.9,3218.1,0.13908726]
[1768835849347,1.28823684,3219.1,3217.5,0.29456726]
[1768835849647,1.28823684,3218.7,3217.5,0.29456726]
[1768835850245,1.28823684,3218.7,3217.0,0.29458726]
[1768835850451,0.92646168,3218.6,3217.1,0.13908726]
[1768835850641,0.92646168,3218.5,3217.1,0.13908726]
[1768835850841,1.28823684,3218.2,3217.1,0.13908726]
[1768835851350,1.28823684,3218.6,3217.1,0.13908726]
[1768835851645,0.92613369,3218.5,3217.1,0.13908726]
[1768835851850,0.92613369,3218.4,3217.2,0.13908726]
[1768835852048,0.92613369,3218.3,3217.2,0.13908726]
[1768835852251,1.11663208,3218.7,3217.2,0.13908726]
[1768835852550,0.92584774,3218.6,3217.2,0.13908726]
[1768835855052,0.92546295,3218.6,3217.2,0.13908726]
[1768835855248,0.92546295,3218.5,3217.2,0.13908726]
[1768835855448,0.92546295,3218.4,3217.2,0.13908726]
[1768835855649,2.40486892,3218.8,3217.2,0.29457726]
[1768835855849,0.92534562,3218.7,3217.3,0.13908726]
[1768835856050,0.92534562,3218.6,3217.3,0.13908726]
[1768835856349,0.92534562,3218.5,3217.3,0.13908726]
[1768835856556,0.92534562,3218.4,3217.3,0.13908726]
[1768835856846,2.40486892,3218.8,3217.3,0.13908726]
[1768835857058,1.28823684,3218.4,3217.4,0.15548]
[1768835858151,1.28823684,3218.4,3217.0,0.14265549]
[1768835858857,0.92535555,3218.3,3217.0,0.14265549]
[1768835859058,1.28823684,3218.4,3217.0,0.14265549]
[1768835859257,0.92541011,3218.3,3217.0,0.14265549]
[1768835859458,1.28823684,3218.4,3217.0,0.14265549]
[1768835859765,0.92541012,3218.3,3217.0,0.14265549]
[1768835860058,1.28823684,3218.0,3217.0,0.00356823]
[1768835861961,1.28823684,3217.6,3216.8,0.15551]
[1768835862362,1.28823684,3218.3,3216.9,0.13965325]
[1768835862564,0.92646082,3218.2,3216.9,0.13965325]
[1768835862768,0.92646082,3218.1,3216.9,0.13965325]
[1768835862968,0.92646082,3218.0,3216.9,0.14198949]
[1768835863261,1.28823684,3218.3,3216.9,0.14198949]
[1768835863462,0.92639655,3218.2,3216.9,0.14198949]
[1768835863663,0.92639655,3218.1,3216.9,0.14198949]
[1768835863861,0.92639655,3218.0,3216.9,0.14198949]
[1768835864063,1.28823684,3218.3,3216.9,0.14198949]
[1768835864264,0.92628256,3218.2,3216.9,0.14198949]
[1768835864469,0.92628256,3218.1,3216.9,0.14198949]
[1768835864663,0.92628256,3218.0,3216.9,0.14198949]
[1768835864862,1.28823684,3218.3,3216.9,0.14198949]
[1768835865064,0.92628222,3218.2,3216.9,0.14198949]
[1768835865366,0.92628222,3218.1,3216.9,0.14198949]
[1768835865560,0.92628222,3218.0,3216.9,0.14198949]
[1768835865766,1.28823684,3217.9,3216.9,0.00233624]
[1768835865966,1.28823684,3217.9,3216.8,0.15551]
[1768835866963,1.28823684,3217.9,3216.8,0.1583099]
[1768835868666,1.28823684,3217.9,3216.8,0.0027999]
[1768835868857,1.28823684,3217.9,3216.2,0.15554]
[1768835868858,0.92609036,3217.8,3216.2,0.15554]
[1768835869063,0.92609036,3217.7,3216.2,0.15554]
[1768835869258,0.92609036,3217.6,3216.2,0.15554]
[1768835869463,1.42169447,3217.9,3216.2,0.29519325]
[1768835869662,1.28823684,3217.5,3216.2,0.29519325]
[1768835869873,1.28823684,3217.5,3216.2,0.29737931]
[1768835870770,1.42169447,3217.9,3216.2,0.29737931]
[1768835870965,0.92581617,3217.8,3216.2,0.29737931]
[1768835871165,1.28823684,3217.5,3216.2,0.29737931]
[1768835871969,1.28823684,3217.5,3216.2,0.15772606]
[1768835876272,1.57715447,3217.9,3216.2,0.15772606]
[1768835876473,1.28823684,3217.5,3216.2,0.15772606]
[1768835878075,1.28823684,3217.1,3215.7,0.13999848]
[1768835878771,1.28823684,3217.5,3215.7,0.13999848]
[1768835878970,1.41215467,3217.8,3216.3,0.29553848]
[1768835878971,0.92618721,3217.4,3216.3,0.29553848]
[1768835879178,0.00232315,3217.5,3216.4,0.29552848]
[1768835879372,0.00232315,3217.5,3216.5,0.15553]
[1768835879769,0.00232315,3217.5,3216.6,0.13999848]
[1768835879968,0.00232315,3217.5,3216.7,0.13999848]
[1768835882266,0.00232315,3217.5,3216.6,0.15552]
[1768835882979,0.00232315,3217.5,3216.6,0.29551848]
[1768835883175,1.11663208,3218.2,3216.9,0.13999848]
[1768835883385,0.9268664,3218.1,3217.1,0.13999848]
[1768835883680,1.11663208,3218.5,3217.2,0.13999848]
[1768835883871,0.92684258,3218.4,3217.2,0.13999848]
[1768835884068,0.92684258,3218.3,3217.3,0.13999848]
[1768835884268,0.00266859,3218.3,3216.9,0.15551]
[1768835884470,1.42828943,3218.1,3216.9,0.15551]
[1768835885287,0.00466099,3217.8,3216.9,0.15551]
[1768835886283,1.42828943,3217.7,3216.4,0.15553]
[1768835888489,0.00466099,3217.8,3216.5,0.15553]
[1768835888879,0.00466099,3217.8,3216.6,0.15552]
[1768835889684,0.14471358,3217.8,3216.6,0.15552]
[1768835892089,0.00466099,3217.8,3216.7,0.15552]
[1768835892983,1.29380116,3217.8,3216.7,0.15552]
[1768835894188,1.28914017,3217.4,3215.8,0.13999848]
[1768835894394,1.28914017,3217.7,3216.5,0.15553]
[1768835894884,1.29380116,3217.8,3216.6,0.15552]
[1768835895191,1.29380116,3217.8,3216.7,0.15552]
[1768835895395,0.00466099,3217.8,3216.7,0.15552]
[1768835895598,1.29380116,3217.8,3216.7,0.15552]
[1768835896486,1.28914017,3217.6,3216.7,0.15552]
[1768835897390,0.00466099,3217.8,3216.8,0.15551]
[1768835897693,0.00466099,3217.8,3217.0,0.1555]
[1768835899098,0.00466099,3217.8,3217.0,1.42913865]
[1768835899398,0.00266859,3218.3,3217.1,0.13999848]
[1768835899598,0.92745808,3218.2,3217.1,0.14465947]
[1768835899793,0.00266859,3218.3,3217.1,0.14465947]
[1768835899985,0.92744067,3218.2,3217.1,0.14465947]
[1768835900182,0.00266859,3218.3,3217.1,0.14465947]
[1768835900587,0.00266859,3218.3,3217.3,0.15549]
[1768835900785,0.00266859,3218.3,3217.3,0.13999848]
[1768835900989,0.00266859,3218.3,3217.5,0.29547848]
[1768835904589,0.00266859,3218.3,3217.5,0.15548]
[1768835905985,1.28914017,3218.0,3217.5,0.15548]
[1768835906591,1.28914017,3217.6,3217.1,0.00466099]
[1768835906802,1.28914017,3217.8,3217.1,0.00466099]
[1768835907703,1.28914017,3218.0,3217.1,0.16016099]
[1768835911198,1.28914017,3217.8,3217.1,0.16016099]
[1768835915207,1.28914017,3218.0,3217.1,0.16016099]
[1768835918303,0.13798948,3218.3,3217.1,0.16016099]
[1768835918502,1.28914017,3217.9,3217.1,0.16016099]
[1768835921506,0.13798948,3218.3,3217.1,0.16016099]
[1768835921710,1.28914017,3217.9,3217.1,0.16016099]
[1768835922112,1.28914017,3218.1,3217.1,0.16016099]
[1768835926817,1.28914017,3218.0,3217.1,0.16016099]
[1768835928522,1.28914017,3217.8,3217.1,0.16016099]
[1768835931522,0.13798948,3218.3,3217.1,0.16016099]
[1768835931721,1.28914017,3217.9,3217.1,0.16016099]
[1768835932621,1.28914017,3217.5,3217.1,0.16016099]
[1768835933121,1.28914017,3217.3,3216.2,0.13744236]
[1768835934718,1.28914017,3217.3,3216.6,0.15552]
[1768835936223,1.28914017,3216.9,3215.8,0.14424752]
[1768835936430,1.28914017,3216.9,3215.8,2.54524752]
[1768835936626,1.28914017,3217.1,3216.3,0.15554]
[1768835938532,1.28914017,3217.1,3216.4,0.15553]
[1768835939027,1.28914017,3217.1,3216.5,0.15553]
[1768835939227,1.28914017,3217.5,3216.5,0.15553]
[1768835940327,1.28914017,3217.3,3216.5,0.15553]
[1768835941922,1.28914017,3217.3,3216.6,0.15552]
[1768835942430,1.28914017,3217.6,3216.6,0.15552]
[1768835942840,1.28914017,3217.6,3216.7,0.15552]
[1768835943931,1.28914017,3217.4,3216.7,0.15552]
[1768835944831,1.41919411,3218.0,3216.7,0.15552]
[1768835945040,1.28914017,3217.6,3216.8,0.15551]
[1768835945339,1.28914017,3218.0,3216.9,0.15551]
[1768835945538,0.92732856,3217.9,3216.9,0.29975752]
[1768835945737,1.28914017,3218.0,3216.9,0.29975752]
[1768835945936,0.92728578,3217.9,3216.9,0.29975752]
[1768835946140,1.28914017,3218.0,3216.9,0.29975752]
[1768835946332,0.92731813,3217.9,3216.9,0.29975752]
[1768835946531,0.00266859,3218.3,3217.2,0.29973752]
[1768835946840,0.92729907,3218.2,3217.2,0.29973752]
[1768835947029,0.00266859,3218.3,3217.2,0.29973752]
[1768835947229,0.92726619,3218.2,3217.2,0.29973752]
[1768835947432,0.00266859,3218.3,3217.2,0.29973752]
[1768835947629,0.92727051,3218.2,3217.3,0.15549]
[1768835947837,0.00266859,3218.3,3217.3,0.15549]
[1768835948023,0.92726711,3218.2,3217.3,0.15549]
[1768835948233,0.00266859,3218.3,3217.3,0.15549]
[1768835948438,0.92723775,3218.2,3217.3,0.15549]
[1768835948632,0.00266859,3218.3,3217.3,0.15549]
[1768835948839,0.9272477,3218.2,3217.3,0.15549]
[1768835949035,0.00266859,3218.3,3217.3,0.15549]
[1768835949234,0.92722535,3218.2,3217.3,0.15549]
[1768835949436,0.00266859,3218.3,3217.3,0.15549]
[1768835949640,0.92723021,3218.2,3217.3,0.15549]
[1768835949842,0.00266859,3218.3,3217.3,0.15549]
[1768835950035,0.92723021,3218.2,3217.3,0.15549]
[1768835950242,0.00266859,3218.3,3217.3,0.15549]
[1768835950635,0.00266859,3218.3,3217.4,0.15549]
[1768835951541,0.00266859,3218.3,3217.6,0.15547]
[1768835952042,1.28914017,3218.2,3217.6,0.15547]
[1768835953034,0.00266859,3218.3,3217.6,0.29971752]
[1768835954042,0.00266859,3218.3,3217.6,0.15547]
[1768835955240,1.28871572,3218.1,3217.0,0.1555]
[1768835955643,0.00266859,3218.3,3217.1,0.1555]
[1768835956441,0.00266859,3218.3,3217.2,0.15549]
[1768835957339,0.00266859,3218.3,3217.3,0.15549]
[1768835957541,0.00266859,3218.3,3217.5,0.29972752]
[1768835958146,0.00266859,3218.3,3217.6,0.29972752]
[1768835959552,0.00266859,3218.3,3217.6,0.15548]
[1768835962340,0.00266859,3218.3,3217.7,0.29971752]
[1768835971653,0.00266859,3218.3,3217.7,0.15547]
[1768835972945,0.00266859,3218.3,3217.0,0.13635468]
[1768835973145,0.00266859,3218.3,3217.2,0.15549]
[1768835975544,0.00266859,3218.3,3217.3,0.15549]
[1768835975946,0.00266859,3218.3,3217.3,0.29184468]
[1768835976253,0.00266859,3218.3,3217.4,0.15548]
[1768835976640,0.00266859,3218.3,3217.4,0.29183468]
[1768835977963,0.00266859,3218.3,3217.5,0.13635468]
[1768835978256,0.00266859,3218.3,3217.5,0.29183468]
[1768835980255,0.00266859,3218.3,3217.6,0.29900727]
[1768835980471,1.11663208,3218.8,3217.7,0.14352727]
[1768835980671,0.92827858,3218.7,3217.7,0.14352727]
[1768835980870,0.92827858,3218.6,3217.7,0.14352727]
[1768835981169,0.92827858,3218.5,3217.7,0.14352727]
[1768835981370,0.92827858,3218.4,3217.7,0.14352727]
[1768835981572,1.11958351,3218.9,3217.7,0.14352727]
[1768835981767,2.04461063,3218.8,3217.7,0.14352727]
[1768835982669,0.92797855,3218.7,3217.7,0.14352727]
[1768835982869,0.92797855,3218.6,3217.7,0.14352727]
[1768835983169,0.92797855,3218.5,3217.6,0.15548]
[1768835983363,0.92797855,3218.4,3217.6,0.15548]
[1768835983564,1.28871572,3218.6,3217.6,0.15548]
[1768835983764,0.92751422,3218.5,3217.6,0.15548]
[1768835983969,0.92751422,3218.4,3217.6,0.15548]
[1768835984166,1.28871572,3218.6,3217.6,0.15548]
[1768835984365,0.9275158,3218.5,3217.6,0.15548]
[1768835984567,0.9275158,3218.4,3217.6,0.15548]
[1768835984868,1.28871572,3218.6,3217.6,0.15548]
[1768835985069,0.92751913,3218.5,3217.6,0.15548]
[1768835985271,0.92751913,3218.4,3217.6,0.15548]
[1768835985572,0.92751913,3218.3,3217.6,0.15547]
[1768835985775,1.28871572,3218.6,3217.6,0.15547]
[1768835985977,0.92755944,3218.5,3217.6,0.15547]
[1768835986169,0.92755944,3218.4,3217.6,0.15547]
[1768835986368,0.92755944,3218.3,3217.6,0.15547]
[1768835986570,1.28871572,3218.6,3217.3,0.14352727]
[1768835986772,0.92757594,3218.5,3217.6,0.15547]
[1768835986967,0.92757594,3218.4,3217.6,0.15547]
[1768835987162,0.92757594,3218.3,3217.6,0.15547]
[1768835987367,1.28871572,3218.6,3217.6,0.15547]
[1768835987571,0.92759193,3218.5,3217.6,0.15547]
[1768835987767,1.28871572,3218.2,3216.3,0.14352727]
[1768835988079,0.92762809,3218.1,3216.9,0.15551]
[1768835988278,1.28871572,3218.2,3216.9,0.15551]
[1768835988576,0.9273793,3218.1,3216.9,0.15551]
[1768835988779,1.28871572,3218.2,3216.9,0.15551]
[1768835988979,0.92737939,3218.1,3216.9,0.15551]
[1768835989183,1.28871572,3218.2,3217.0,0.1555]
[1768835989374,0.92719742,3218.1,3217.0,0.1555]
[1768835989575,1.28871572,3218.2,3217.0,0.1555]
[1768835989885,0.92719715,3218.1,3217.1,0.14352727]
[1768835990178,1.11663208,3218.7,3217.4,0.29900727]
[1768835990385,1.11663208,3218.7,3217.5,0.14352727]
[1768835990582,0.92704386,3218.6,3217.5,0.14352727]
[1768835990779,0.92704386,3218.5,3217.5,0.14352727]
[1768835991081,0.92704386,3218.4,3217.5,0.14352727]
[1768835991269,0.92704386,3218.3,3217.5,0.14352727]
[1768835991473,0.00295143,3218.9,3217.6,0.14352727]
[1768835991674,0.92695316,3218.8,3217.6,0.14352727]
[1768835991875,0.92695316,3218.7,3217.6,0.14352727]
[1768835992074,0.92695316,3218.6,3217.6,0.14352727]
[1768835992281,0.92695316,3218.5,3217.6,0.14352727]
[1768835992476,0.00295143,3218.9,3217.6,0.29900727]
[1768835992676,1.11958351,3218.9,3217.6,0.29900727]
[1768835992980,0.92600042,3218.8,3217.9,0.13229022]
[1768835993174,0.92600042,3218.7,3217.9,0.13229022]
[1768835993481,0.92600042,3218.6,3217.9,0.13229022]
[1768835993681,0.92600042,3218.5,3217.9,0.13229022]
[1768835993883,1.11958351,3218.9,3217.9,0.13229022]
[1768835994082,0.92597995,3218.8,3217.9,0.13229022]
[1768835994279,0.92597995,3218.7,3217.9,0.13229022]
[1768835994479,0.92597995,3218.6,3217.9,0.13229022]
[1768835994679,0.92597995,3218.5,3217.9,0.28775022]
[1768835994878,0.00295143,3218.9,3217.9,0.28775022]
[1768835995079,0.92593922,3218.8,3217.9,0.28775022]
[1768835995283,0.00295143,3218.9,3217.9,0.28775022]
[1768835995480,0.92578336,3218.8,3217.9,0.28775022]
[1768835995676,0.00295143,3218.9,3217.9,0.28775022]
[1768835995881,0.92578352,3218.8,3217.9,0.28775022]
[1768835996076,0.00295143,3218.9,3217.9,0.28775022]
[1768835996270,0.92565337,3218.8,3217.9,0.28775022]
[1768835996474,0.00295143,3218.9,3217.9,0.28775022]
[1768835996680,0.92565319,3218.8,3217.9,0.28775022]
[1768835996886,0.00295143,3218.9,3217.9,0.15546]